[Event "Titled Tuesday Blitz March 07 Late 2023"]
[White "Yoo, Christopher Woojin"]
[Black "Rorrer, Grayson"]
[WhiteFideId "30909694"]
[BlackFideId "30944996"]
[WhiteElo "2519"]
[BlackElo "2200"]
[Result "1-0"]
[Round "06"]
[TimeControl "180+2"]
[Date "2023.03.07"]
[WhiteClock "0:00:05"]
[BlackClock "0:00:04"]

1. e4 {[%clk 0:03:00]}  c5 {[%clk 0:02:54]} 2. Nf3 {[%clk 0:02:58]}  d6 {[%clk 0:02:55]} 3. Bb5+ {[%clk 0:02:55]}  Nd7 {[%clk 0:02:55]} 4. O-O {[%clk 0:02:54]}  a6 {[%clk 0:02:55]} 5. Bxd7+ {[%clk 0:02:49]}  Bxd7 {[%clk 0:02:55]} 6. d4 {[%clk 0:02:48]}  cxd4 {[%clk 0:02:56]} 7. Nxd4 {[%clk 0:02:48]}  Nf6 {[%clk 0:02:55]} 8. Re1 {[%clk 0:02:49]}  e5 {[%clk 0:02:25]} 9. Nf3 {[%clk 0:02:47]}  h6 {[%clk 0:02:26]} 10. c4 {[%clk 0:02:44]}  Rc8 {[%clk 0:02:25]} 11. b3 {[%clk 0:02:43]}  b5 {[%clk 0:02:25]} 12. cxb5 {[%clk 0:02:43]}  axb5 {[%clk 0:02:24]} 13. Ba3 {[%clk 0:02:41]}  Bc6 {[%clk 0:02:16]} 14. Qd3 {[%clk 0:02:27]}  Be7 {[%clk 0:02:02]} 15. Bb4 {[%clk 0:02:25]}  O-O {[%clk 0:01:50]} 16. Nc3 {[%clk 0:02:24]}  Qb6 {[%clk 0:01:45]} 17. Rad1 {[%clk 0:02:18]}  Rfd8 {[%clk 0:01:44]} 18. Nd2 {[%clk 0:02:09]}  Qb7 {[%clk 0:01:26]} 19. Nf1 {[%clk 0:01:19]}  d5 {[%clk 0:01:26]} 20. Bxe7 {[%clk 0:01:15]}  Qxe7 {[%clk 0:01:26]} 21. exd5 {[%clk 0:01:15]}  Nxd5 {[%clk 0:01:25]} 22. Nxd5 {[%clk 0:01:15]}  Rxd5 {[%clk 0:01:20]} 23. Qf5 {[%clk 0:01:16]}  Re8 {[%clk 0:01:12]} 24. Rxd5 {[%clk 0:01:10]}  Bxd5 {[%clk 0:01:13]} 25. Ne3 {[%clk 0:01:10]}  Bc6 {[%clk 0:00:44]} 26. Rc1 {[%clk 0:01:06]}  Qb7 {[%clk 0:00:41]} 27. h4 {[%clk 0:01:02]}  Bd7 {[%clk 0:00:36]} 28. Qd3 {[%clk 0:00:59]}  Be6 {[%clk 0:00:36]} 29. Rc5 {[%clk 0:00:56]}  Rb8 {[%clk 0:00:32]} 30. Rxe5 {[%clk 0:00:55]}  Qa7 {[%clk 0:00:20]} 31. Qd2 {[%clk 0:00:40]}  Ra8 {[%clk 0:00:18]} 32. Rxb5 {[%clk 0:00:38]}  Qxa2 {[%clk 0:00:18]} 33. Rb8+ {[%clk 0:00:38]}  Kh7 {[%clk 0:00:18]} 34. Qxa2 {[%clk 0:00:31]}  Rxa2 {[%clk 0:00:19]} 35. b4 {[%clk 0:00:32]}  Rb2 {[%clk 0:00:20]} 36. b5 {[%clk 0:00:32]}  g5 {[%clk 0:00:18]} 37. hxg5 {[%clk 0:00:22]}  hxg5 {[%clk 0:00:19]} 38. b6 {[%clk 0:00:22]}  Kg7 {[%clk 0:00:10]} 39. b7 {[%clk 0:00:18]}  Kf6 {[%clk 0:00:09]} 40. f3 {[%clk 0:00:16]}  Ke7 {[%clk 0:00:02]} 41. Kh2 {[%clk 0:00:16]}  Kd7 {[%clk 0:00:01]} 42. Kg3 {[%clk 0:00:10]}  Kc7 {[%clk 0:00:01]} 43. Rg8 {[%clk 0:00:10]}  Rxb7 {[%clk 0:00:01]} 44. Rxg5 {[%clk 0:00:10]}  Rb6 {[%clk 0:00:02]} 45. Kf4 {[%clk 0:00:10]}  Rb4+ {[%clk 0:00:02]} 46. Ke5 {[%clk 0:00:09]}  Rb3 {[%clk 0:00:02]} 47. Nf5 {[%clk 0:00:06]}  Rb5+ {[%clk 0:00:02]} 48. Kf6 {[%clk 0:00:07]}  Rb6 {[%clk 0:00:02]} 49. Ng7 {[%clk 0:00:03]}  Bc4+ {[%clk 0:00:02]} 50. Ke7 {[%clk 0:00:04]}  Rc6 {[%clk 0:00:01]} 51. Ne8+ {[%clk 0:00:04]}  Kb6 {[%clk 0:00:02]} 52. Nd6 {[%clk 0:00:05]}  Bb3 {[%clk 0:00:01]} 53. Rb5+ {[%clk 0:00:04]}  Ka6 {[%clk 0:00:02]} 54. Rxb3 {[%clk 0:00:04]}  Rc7+ {[%clk 0:00:03]} 55. Kf6 {[%clk 0:00:04]}  Rc6 {[%clk 0:00:04]} 56. Rd3 {[%clk 0:00:05]} 1-0


[Site "https://www.chess.com"]

[Event "Titled Tuesday Blitz March 07 Late 2023"]
[White "Aldokhin, Ivan"]
[Black "Vazquez, Guillermo"]
[WhiteFideId "24115720"]
[BlackFideId "3702308"]
[WhiteElo "2322"]
[BlackElo "2543"]
[Result "0-1"]
[Round "06"]
[TimeControl "180+2"]
[Date "2023.03.07"]
[WhiteClock "0:00:03"]
[BlackClock "0:00:39"]

1. e4 {[%clk 0:02:59]}  c6 {[%clk 0:02:59]} 2. Nc3 {[%clk 0:02:59]}  d5 {[%clk 0:03:00]} 3. d4 {[%clk 0:02:59]}  dxe4 {[%clk 0:03:00]} 4. Nxe4 {[%clk 0:03:00]}  Nf6 {[%clk 0:03:01]} 5. Nxf6+ {[%clk 0:03:00]}  exf6 {[%clk 0:03:02]} 6. c3 {[%clk 0:03:01]}  Bd6 {[%clk 0:03:01]} 7. Bd3 {[%clk 0:03:02]}  O-O {[%clk 0:03:01]} 8. Ne2 {[%clk 0:03:03]}  Re8 {[%clk 0:03:02]} 9. Qc2 {[%clk 0:03:03]}  h5 {[%clk 0:03:02]} 10. O-O {[%clk 0:03:04]}  h4 {[%clk 0:03:02]} 11. h3 {[%clk 0:03:04]}  Nd7 {[%clk 0:03:02]} 12. Kh1 {[%clk 0:03:05]}  Nf8 {[%clk 0:03:00]} 13. Ng1 {[%clk 0:03:05]}  Bc7 {[%clk 0:02:30]} 14. f4 {[%clk 0:03:03]}  g6 {[%clk 0:02:21]} 15. Qf2 {[%clk 0:02:54]}  c5 {[%clk 0:02:02]} 16. Nf3 {[%clk 0:02:19]}  cxd4 {[%clk 0:02:01]} 17. cxd4 {[%clk 0:02:12]}  f5 {[%clk 0:01:38]} 18. Bc4 {[%clk 0:01:39]}  Be6 {[%clk 0:01:35]} 19. b3 {[%clk 0:01:37]}  Bxc4 {[%clk 0:01:25]} 20. bxc4 {[%clk 0:01:37]}  Ne6 {[%clk 0:01:26]} 21. d5 {[%clk 0:00:36]}  Nxf4 {[%clk 0:01:24]} 22. Bxf4 {[%clk 0:00:35]}  Bxf4 {[%clk 0:01:25]} 23. Nxh4 {[%clk 0:00:36]}  Re4 {[%clk 0:01:03]} 24. Rad1 {[%clk 0:00:30]}  Be3 {[%clk 0:00:52]} 25. Qf3 {[%clk 0:00:20]}  Qxh4 {[%clk 0:00:52]} 26. d6 {[%clk 0:00:20]}  Rd8 {[%clk 0:00:51]} 27. Rd5 {[%clk 0:00:15]}  Rf4 {[%clk 0:00:46]} 28. Qe2 {[%clk 0:00:10]}  Rxf1+ {[%clk 0:00:46]} 29. Qxf1 {[%clk 0:00:11]}  b6 {[%clk 0:00:45]} 30. d7 {[%clk 0:00:07]}  Bg5 {[%clk 0:00:41]} 31. Qd1 {[%clk 0:00:03]}  Qxc4 {[%clk 0:00:39]} 32. Rd4 {[%clk 0:00:02]}  Qe6 {[%clk 0:00:39]} 33. Rd6 {[%clk 0:00:02]}  Qe7 {[%clk 0:00:37]} 34. Qd5 {[%clk 0:00:02]}  Kg7 {[%clk 0:00:38]} 35. Qd4+ {[%clk 0:00:02]}  Bf6 {[%clk 0:00:39]} 36. Qd5 {[%clk 0:00:03]}  Qe1+ {[%clk 0:00:39]} 37. Kh2 {[%clk 0:00:03]}  Be5+ {[%clk 0:00:39]} 0-1


[Site "https://www.chess.com"]

[Event "Titled Tuesday Blitz March 07 Late 2023"]
[White "Ibarra Jerez, Jose Carlos"]
[Black "Martynov, Pavel"]
[WhiteFideId "2226332"]
[BlackFideId "4101260"]
[WhiteElo "2638"]
[BlackElo "2314"]
[Result "1-0"]
[Round "06"]
[TimeControl "180+2"]
[Date "2023.03.07"]
[WhiteClock "0:00:46"]
[BlackClock "0:00:39"]

1. e4 {[%clk 0:02:59]}  c5 {[%clk 0:02:54]} 2. Nf3 {[%clk 0:02:58]}  e6 {[%clk 0:02:54]} 3. d4 {[%clk 0:02:58]}  cxd4 {[%clk 0:02:53]} 4. Nxd4 {[%clk 0:02:58]}  Nc6 {[%clk 0:02:52]} 5. Nc3 {[%clk 0:02:58]}  Qc7 {[%clk 0:02:50]} 6. Be3 {[%clk 0:02:58]}  a6 {[%clk 0:02:49]} 7. g4 {[%clk 0:02:58]}  b5 {[%clk 0:02:37]} 8. Nxc6 {[%clk 0:02:57]}  Qxc6 {[%clk 0:02:38]} 9. Qd2 {[%clk 0:02:56]}  Bb7 {[%clk 0:02:34]} 10. O-O-O {[%clk 0:02:54]}  Nf6 {[%clk 0:02:26]} 11. f3 {[%clk 0:02:53]}  b4 {[%clk 0:02:24]} 12. Ne2 {[%clk 0:02:53]}  d5 {[%clk 0:02:21]} 13. Nd4 {[%clk 0:02:02]}  Qc7 {[%clk 0:02:21]} 14. e5 {[%clk 0:02:01]}  Nd7 {[%clk 0:02:18]} 15. f4 {[%clk 0:02:00]}  Rc8 {[%clk 0:02:03]} 16. Kb1 {[%clk 0:01:59]}  Bc5 {[%clk 0:02:02]} 17. h4 {[%clk 0:01:36]}  Nb6 {[%clk 0:01:58]} 18. b3 {[%clk 0:01:34]}  Nd7 {[%clk 0:01:45]} 19. g5 {[%clk 0:01:28]}  Bb6 {[%clk 0:01:39]} 20. f5 {[%clk 0:01:22]}  Nc5 {[%clk 0:01:36]} 21. Bg2 {[%clk 0:01:18]}  Bc6 {[%clk 0:01:00]} 22. h5 {[%clk 0:01:04]}  a5 {[%clk 0:00:56]} 23. g6 {[%clk 0:01:02]}  a4 {[%clk 0:00:50]} 24. gxf7+ {[%clk 0:00:54]}  Qxf7 {[%clk 0:00:50]} 25. fxe6 {[%clk 0:00:54]}  Nxe6 {[%clk 0:00:39]} 26. Nxe6 {[%clk 0:00:49]}  Qxe6 {[%clk 0:00:39]} 27. Bxb6 {[%clk 0:00:46]} 1-0


[Site "https://www.chess.com"]

[Event "Titled Tuesday Blitz March 07 Late 2023"]
[White "Dardha, Daniel"]
[Black "Do Valle Cardoso, Lucas"]
[WhiteFideId "240990"]
[BlackFideId "2163144"]
[WhiteElo "2581"]
[BlackElo "2383"]
[Result "1-0"]
[Round "06"]
[TimeControl "180+2"]
[Date "2023.03.07"]
[WhiteClock "0:01:04"]
[BlackClock "0:00:57"]

1. d4 {[%clk 0:03:00]}  d5 {[%clk 0:02:59]} 2. c4 {[%clk 0:02:59]}  dxc4 {[%clk 0:03:00]} 3. e4 {[%clk 0:02:59]}  e5 {[%clk 0:03:00]} 4. Nf3 {[%clk 0:02:57]}  exd4 {[%clk 0:03:00]} 5. Bxc4 {[%clk 0:02:56]}  Nc6 {[%clk 0:03:01]} 6. Qb3 {[%clk 0:02:54]}  Bb4+ {[%clk 0:02:59]} 7. Bd2 {[%clk 0:02:52]}  Qe7 {[%clk 0:02:52]} 8. Bxb4 {[%clk 0:02:39]}  Qxb4+ {[%clk 0:02:52]} 9. Qxb4 {[%clk 0:02:39]}  Nxb4 {[%clk 0:02:51]} 10. Nxd4 {[%clk 0:02:40]}  a6 {[%clk 0:02:42]} 11. a3 {[%clk 0:02:37]}  c5 {[%clk 0:02:28]} 12. axb4 {[%clk 0:02:37]}  cxd4 {[%clk 0:02:29]} 13. f3 {[%clk 0:02:35]}  Nf6 {[%clk 0:02:19]} 14. Nd2 {[%clk 0:02:27]}  Be6 {[%clk 0:02:15]} 15. Ke2 {[%clk 0:02:23]}  Ke7 {[%clk 0:02:11]} 16. Rhc1 {[%clk 0:02:19]}  Rac8 {[%clk 0:02:03]} 17. Kd3 {[%clk 0:02:17]}  Rhd8 {[%clk 0:02:00]} 18. Bxe6 {[%clk 0:02:12]}  fxe6 {[%clk 0:01:57]} 19. Rxc8 {[%clk 0:02:11]}  Rxc8 {[%clk 0:01:57]} 20. Kxd4 {[%clk 0:02:12]}  Rc2 {[%clk 0:01:57]} 21. Kd3 {[%clk 0:02:12]}  Rc7 {[%clk 0:01:52]} 22. b5 {[%clk 0:02:07]}  axb5 {[%clk 0:01:52]} 23. Ra5 {[%clk 0:02:07]}  Rc5 {[%clk 0:01:45]} 24. b4 {[%clk 0:02:00]}  Rh5 {[%clk 0:01:44]} 25. Nf1 {[%clk 0:01:57]}  Nd7 {[%clk 0:01:33]} 26. Ra7 {[%clk 0:01:51]}  b6 {[%clk 0:01:32]} 27. h3 {[%clk 0:01:26]}  Kd6 {[%clk 0:01:30]} 28. Ne3 {[%clk 0:01:23]}  Rh6 {[%clk 0:01:20]} 29. Ng4 {[%clk 0:01:21]}  Rg6 {[%clk 0:01:19]} 30. Rxd7+ {[%clk 0:01:15]}  Kxd7 {[%clk 0:01:20]} 31. Ne5+ {[%clk 0:01:16]}  Kd6 {[%clk 0:01:17]} 32. Nxg6 {[%clk 0:01:17]}  hxg6 {[%clk 0:01:18]} 33. h4 {[%clk 0:01:08]}  Kd7 {[%clk 0:01:12]} 34. Ke3 {[%clk 0:01:05]}  e5 {[%clk 0:01:06]} 35. Kf2 {[%clk 0:01:05]}  Ke6 {[%clk 0:01:05]} 36. Kg3 {[%clk 0:01:06]}  Ke7 {[%clk 0:01:04]} 37. Kg4 {[%clk 0:01:06]}  Kf6 {[%clk 0:01:00]} 38. g3 {[%clk 0:01:06]}  g5 {[%clk 0:00:56]} 39. h5 {[%clk 0:01:04]}  Ke6 {[%clk 0:00:57]} 40. Kxg5 {[%clk 0:01:04]} 1-0


[Site "https://www.chess.com"]

[Event "Titled Tuesday Blitz March 07 Late 2023"]
[White "Czernek, Tymon"]
[Black "Rustemov, Alexander"]
[WhiteFideId "1199510"]
[BlackFideId "4119002"]
[WhiteElo "2156"]
[BlackElo "2863"]
[Result "0-1"]
[Round "06"]
[TimeControl "180+2"]
[Date "2023.03.07"]
[WhiteClock "0:00:03"]
[BlackClock "0:00:49"]

1. e4 {[%clk 0:03:00]}  e6 {[%clk 0:03:00]} 2. d4 {[%clk 0:03:00]}  d5 {[%clk 0:03:00]} 3. Nc3 {[%clk 0:03:01]}  dxe4 {[%clk 0:03:01]} 4. Nxe4 {[%clk 0:03:01]}  Bd7 {[%clk 0:03:01]} 5. Bd3 {[%clk 0:02:58]}  Bc6 {[%clk 0:03:01]} 6. Nf3 {[%clk 0:02:55]}  Nd7 {[%clk 0:03:02]} 7. O-O {[%clk 0:02:55]}  Ngf6 {[%clk 0:03:02]} 8. Nxf6+ {[%clk 0:02:45]}  Qxf6 {[%clk 0:03:02]} 9. c3 {[%clk 0:02:39]}  Bxf3 {[%clk 0:03:01]} 10. Qxf3 {[%clk 0:02:40]}  Qxf3 {[%clk 0:03:01]} 11. gxf3 {[%clk 0:02:41]}  Bd6 {[%clk 0:02:55]} 12. Re1 {[%clk 0:02:21]}  O-O {[%clk 0:02:53]} 13. Kg2 {[%clk 0:02:19]}  Nf6 {[%clk 0:02:52]} 14. b3 {[%clk 0:02:18]}  Nh5 {[%clk 0:02:49]} 15. Be4 {[%clk 0:02:13]}  c6 {[%clk 0:02:48]} 16. Be3 {[%clk 0:02:10]}  Rad8 {[%clk 0:02:46]} 17. Rad1 {[%clk 0:02:10]}  Rd7 {[%clk 0:02:44]} 18. Kh1 {[%clk 0:02:05]}  g6 {[%clk 0:02:43]} 19. Bh6 {[%clk 0:02:01]}  Rfd8 {[%clk 0:02:43]} 20. Bc2 {[%clk 0:01:46]}  Bf4 {[%clk 0:02:41]} 21. Bxf4 {[%clk 0:01:44]}  Nxf4 {[%clk 0:02:42]} 22. Re4 {[%clk 0:01:36]}  Nd5 {[%clk 0:02:40]} 23. Rd3 {[%clk 0:01:34]}  b5 {[%clk 0:02:35]} 24. a3 {[%clk 0:01:26]}  a5 {[%clk 0:02:31]} 25. Kg1 {[%clk 0:00:57]}  Kg7 {[%clk 0:02:30]} 26. Kf1 {[%clk 0:00:55]}  Kf6 {[%clk 0:02:26]} 27. Ke1 {[%clk 0:00:49]}  g5 {[%clk 0:02:25]} 28. Re5 {[%clk 0:00:44]}  Nf4 {[%clk 0:02:23]} 29. Rd2 {[%clk 0:00:41]}  h6 {[%clk 0:02:22]} 30. Be4 {[%clk 0:00:40]}  Rd6 {[%clk 0:02:17]} 31. Rc5 {[%clk 0:00:40]}  Rc8 {[%clk 0:02:04]} 32. a4 {[%clk 0:00:40]}  bxa4 {[%clk 0:01:57]} 33. bxa4 {[%clk 0:00:41]}  Rb8 {[%clk 0:01:57]} 34. Rxa5 {[%clk 0:00:41]}  Rb3 {[%clk 0:01:52]} 35. Rc2 {[%clk 0:00:40]}  Ra3 {[%clk 0:01:41]} 36. Rc1 {[%clk 0:00:37]}  Kg7 {[%clk 0:01:30]} 37. Ra7 {[%clk 0:00:37]}  Ra2 {[%clk 0:01:25]} 38. Kf1 {[%clk 0:00:33]}  c5 {[%clk 0:01:20]} 39. Rd1 {[%clk 0:00:15]}  cxd4 {[%clk 0:01:18]} 40. cxd4 {[%clk 0:00:16]}  Rb6 {[%clk 0:01:18]} 41. Rb1 {[%clk 0:00:05]}  Rxb1+ {[%clk 0:01:04]} 42. Bxb1 {[%clk 0:00:06]}  Ra1 {[%clk 0:01:04]} 43. Rb7 {[%clk 0:00:06]}  Rxa4 {[%clk 0:01:05]} 44. Be4 {[%clk 0:00:05]}  Rxd4 {[%clk 0:01:05]} 45. Ke1 {[%clk 0:00:06]}  h5 {[%clk 0:00:56]} 46. h4 {[%clk 0:00:04]}  gxh4 {[%clk 0:00:55]} 47. Rb5 {[%clk 0:00:04]}  f5 {[%clk 0:00:51]} 48. Bc6 {[%clk 0:00:03]}  h3 {[%clk 0:00:50]} 49. Rb7+ {[%clk 0:00:03]}  Kf6 {[%clk 0:00:49]} 0-1


[Site "https://www.chess.com"]

[Event "Titled Tuesday Blitz March 07 Late 2023"]
[White "Yu, Yangyi"]
[Black "Weichhold, Pawel"]
[WhiteFideId "8603820"]
[BlackFideId "1139703"]
[WhiteElo "2783"]
[BlackElo "2330"]
[Result "1-0"]
[Round "06"]
[TimeControl "180+2"]
[Date "2023.03.07"]
[WhiteClock "0:00:07"]
[BlackClock "0:00:11"]

1. Nf3 {[%clk 0:03:00]}  Nf6 {[%clk 0:02:59]} 2. g3 {[%clk 0:03:01]}  g6 {[%clk 0:03:00]} 3. Bg2 {[%clk 0:03:01]}  Bg7 {[%clk 0:03:00]} 4. c4 {[%clk 0:03:01]}  O-O {[%clk 0:03:01]} 5. Nc3 {[%clk 0:03:00]}  d6 {[%clk 0:03:02]} 6. O-O {[%clk 0:03:00]}  Nc6 {[%clk 0:03:03]} 7. d3 {[%clk 0:03:00]}  e5 {[%clk 0:03:02]} 8. Rb1 {[%clk 0:03:00]}  a5 {[%clk 0:03:02]} 9. b3 {[%clk 0:03:00]}  Re8 {[%clk 0:03:03]} 10. Bb2 {[%clk 0:03:00]}  Bf5 {[%clk 0:03:02]} 11. e4 {[%clk 0:02:50]}  Bd7 {[%clk 0:02:59]} 12. h3 {[%clk 0:02:49]}  Nb4 {[%clk 0:02:52]} 13. a3 {[%clk 0:02:46]}  Na6 {[%clk 0:02:52]} 14. Re1 {[%clk 0:02:36]}  Nc5 {[%clk 0:02:52]} 15. Nd5 {[%clk 0:02:34]}  Nxd5 {[%clk 0:02:44]} 16. cxd5 {[%clk 0:02:33]}  Bb5 {[%clk 0:02:39]} 17. Bf1 {[%clk 0:02:30]}  Qd7 {[%clk 0:02:31]} 18. Qc2 {[%clk 0:02:14]}  f5 {[%clk 0:02:24]} 19. h4 {[%clk 0:01:38]}  b6 {[%clk 0:02:12]} 20. Rbc1 {[%clk 0:01:36]}  Rf8 {[%clk 0:02:11]} 21. Nd2 {[%clk 0:01:27]}  Bh6 {[%clk 0:01:45]} 22. Rcd1 {[%clk 0:01:20]}  Qf7 {[%clk 0:01:42]} 23. d4 {[%clk 0:01:17]}  Bxf1 {[%clk 0:01:39]} 24. Rxf1 {[%clk 0:01:12]}  exd4 {[%clk 0:01:25]} 25. Bxd4 {[%clk 0:01:10]}  fxe4 {[%clk 0:01:04]} 26. Nxe4 {[%clk 0:01:07]}  Nxe4 {[%clk 0:01:05]} 27. Qxe4 {[%clk 0:01:07]}  Rae8 {[%clk 0:01:06]} 28. Qc2 {[%clk 0:01:03]}  Bg7 {[%clk 0:01:05]} 29. Bxg7 {[%clk 0:01:01]}  Qxg7 {[%clk 0:01:06]} 30. Rde1 {[%clk 0:01:00]}  Re7 {[%clk 0:01:02]} 31. Re6 {[%clk 0:00:55]}  Ref7 {[%clk 0:00:46]} 32. Re4 {[%clk 0:00:25]}  Qh6 {[%clk 0:00:44]} 33. f4 {[%clk 0:00:22]}  Qh5 {[%clk 0:00:43]} 34. Qd1 {[%clk 0:00:20]}  Qf5 {[%clk 0:00:40]} 35. Rfe1 {[%clk 0:00:18]}  Qh3 {[%clk 0:00:39]} 36. Qf3 {[%clk 0:00:15]}  Qf5 {[%clk 0:00:40]} 37. Re8 {[%clk 0:00:13]}  Qc2 {[%clk 0:00:40]} 38. Rxf8+ {[%clk 0:00:12]}  Rxf8 {[%clk 0:00:40]} 39. a4 {[%clk 0:00:12]}  Rf7 {[%clk 0:00:38]} 40. Re2 {[%clk 0:00:11]}  Qc5+ {[%clk 0:00:34]} 41. Kg2 {[%clk 0:00:12]}  Qd4 {[%clk 0:00:34]} 42. Qe4 {[%clk 0:00:11]}  Qc3 {[%clk 0:00:26]} 43. Qc4 {[%clk 0:00:10]}  Qf6 {[%clk 0:00:20]} 44. Re6 {[%clk 0:00:10]}  Qf5 {[%clk 0:00:20]} 45. Qe4 {[%clk 0:00:10]}  Kf8 {[%clk 0:00:18]} 46. Re8+ {[%clk 0:00:08]}  Kg7 {[%clk 0:00:18]} 47. Qxf5 {[%clk 0:00:08]}  gxf5 {[%clk 0:00:07]} 48. Kf3 {[%clk 0:00:08]}  Kf6 {[%clk 0:00:08]} 49. Re6+ {[%clk 0:00:07]}  Kg7 {[%clk 0:00:08]} 50. h5 {[%clk 0:00:07]}  Kf8 {[%clk 0:00:05]} 51. g4 {[%clk 0:00:07]}  fxg4+ {[%clk 0:00:06]} 52. Kxg4 {[%clk 0:00:07]}  Rg7+ {[%clk 0:00:07]} 53. Kf3 {[%clk 0:00:07]}  Kf7 {[%clk 0:00:06]} 54. Re4 {[%clk 0:00:06]}  Kf6 {[%clk 0:00:04]} 55. Re6+ {[%clk 0:00:06]}  Kf7 {[%clk 0:00:05]} 56. Rh6 {[%clk 0:00:03]}  Kg8 {[%clk 0:00:04]} 57. Rf6 {[%clk 0:00:03]}  Rg1 {[%clk 0:00:04]} 58. Re6 {[%clk 0:00:03]}  Kf7 {[%clk 0:00:04]} 59. Rh6 {[%clk 0:00:03]}  Kg7 {[%clk 0:00:05]} 60. Re6 {[%clk 0:00:03]}  Rc1 {[%clk 0:00:05]} 61. Re7+ {[%clk 0:00:03]}  Kh6 {[%clk 0:00:06]} 62. Kg4 {[%clk 0:00:03]}  Rc5 {[%clk 0:00:05]} 63. Rd7 {[%clk 0:00:02]}  Rc3 {[%clk 0:00:03]} 64. Re7 {[%clk 0:00:02]}  Rc5 {[%clk 0:00:04]} 65. Re6+ {[%clk 0:00:02]}  Kg7 {[%clk 0:00:04]} 66. Re7+ {[%clk 0:00:02]}  Kg8 {[%clk 0:00:05]} 67. h6 {[%clk 0:00:02]}  Rc1 {[%clk 0:00:03]} 68. Kg5 {[%clk 0:00:02]}  Kf8 {[%clk 0:00:03]} 69. Rxh7 {[%clk 0:00:02]}  Rg1+ {[%clk 0:00:03]} 70. Kf6 {[%clk 0:00:02]}  Ke8 {[%clk 0:00:03]} 71. Rh8+ {[%clk 0:00:02]}  Kd7 {[%clk 0:00:04]} 72. h7 {[%clk 0:00:03]}  Rh1 {[%clk 0:00:05]} 73. f5 {[%clk 0:00:04]}  Rh6+ {[%clk 0:00:06]} 74. Kg5 {[%clk 0:00:04]}  Rh1 {[%clk 0:00:07]} 75. f6 {[%clk 0:00:04]}  Rg1+ {[%clk 0:00:08]} 76. Kf4 {[%clk 0:00:05]}  Rh1 {[%clk 0:00:08]} 77. f7 {[%clk 0:00:05]}  Rf1+ {[%clk 0:00:09]} 78. Kg5 {[%clk 0:00:05]}  Rxf7 {[%clk 0:00:09]} 79. Kg6 {[%clk 0:00:06]}  Re7 {[%clk 0:00:08]} 80. Rg8 {[%clk 0:00:06]}  Re1 {[%clk 0:00:08]} 81. h8=Q {[%clk 0:00:06]}  Rg1+ {[%clk 0:00:08]} 82. Kf5 {[%clk 0:00:07]}  Rf1+ {[%clk 0:00:09]} 83. Ke4 {[%clk 0:00:07]}  Re1+ {[%clk 0:00:10]} 84. Kd3 {[%clk 0:00:07]}  Re7 {[%clk 0:00:11]} 85. Rd8# {[%clk 0:00:07]} 1-0


[Site "https://www.chess.com"]